[Event "45th FIDE Olympiad 2024"]
[Site "Budapest"]
[Date "2024.09.15"]
[Round "5.223"]
[White "Chipanga, Chiletso"]
[Black "Mulenga, Prince Daniel"]
[Result "1/2-1/2"]
[ECO "B73"]
[WhiteElo "2089"]
[BlackElo "2184"]
[PlyCount "105"]
[EventDate "2024.09.05"]
[EventType "team-tourn"]
[EventCountry "HUN"]
[WhiteTeam "Malawi"]
[BlackTeam "Zambia"]
[WhiteTeamCountry "MWI"]
[BlackTeamCountry "ZAM"]
[TimeControl "40/5400+30:1800+30"]

1. e4 c5 2. Nf3 Nc6 3. d4 cxd4 4. Nxd4 Nf6 5. Nc3 d6 6. Be2 g6 7. O-O Bg7 8. Be3 O-O 9. Nxc6 bxc6 10. f4 Nd7 11. g4 Rb8 12. Na4 Rb4 13. c4 Nf6 14. Nc3 Rxb2 15. Rc1 Qa5 16. Bd4 c5 17. Bxf6 Bxf6 18. e5 dxe5 19. g5 Bg7 20. Nd5 exf4 21. Nxe7+ Kh8 22. Rxf4 Be6 23. Bf3 Qd2 24. Qxd2 Rxd2 25. Re1 Rb8 26. Nc6 Rbb2 27. Bd5 Rxa2 28. Bxe6 fxe6 29. Rxe6 Ra1+ 30. Rf1 Bd4+ 31. Nxd4 Rxf1+ 32. Kxf1 Rxd4 33. h3 Rxc4 34. Re8+ Kg7 35. Re7+ Kg8 36. Rxa7 Rc1+ 37. Ke2 Rg1 38. h4 Rg4 39. Ra8+ Kf7 40. Ra7+ Ke6 41. Rxh7 Kd5 42. Kf3 Ra4 43. h5 gxh5 44. Rxh5 Ra8 45. g6+ Kd4 46. g7 Rg8 47. Rg5 c4 48. Rg6 Kd3 49. Rd6+ Kc2 50. Rd7 c3 51. Kf4 Kb2 52. Rb7+ Ka2 53. Ke3 1/2-1/2

[Event "45th FIDE Olympiad 2024"]
[Site "Budapest"]
[Date "2024.09.15"]
[Round "5.224"]
[White "Kaoma, Micheal"]
[Black "Mwale, George"]
[Result "1-0"]
[ECO "D37"]
[WhiteElo "2161"]
[BlackElo "2056"]
[PlyCount "133"]
[EventDate "2024.09.05"]
[EventType "team-tourn"]
[EventCountry "HUN"]
[WhiteTeam "Zambia"]
[BlackTeam "Malawi"]
[WhiteTeamCountry "ZAM"]
[BlackTeamCountry "MWI"]
[TimeControl "40/5400+30:1800+30"]

1. d4 Nf6 2. c4 e6 3. Nc3 d5 4. Nf3 Be7 5. Qc2 O-O 6. e4 dxe4 7. Nxe4 Nc6 8. Be3 Nxe4 9. Qxe4 Bb4+ 10. Bd2 Bxd2+ 11. Kxd2 f5 12. Qe3 Qf6 13. Rd1 Nxd4 14. Nxd4 c5 15. Nc2 Qxb2 16. Qc3 Qb6 17. Bd3 Bd7 18. Qe5 Rf6 19. Ke2 Bc6 20. f3 Rd8 21. Kf2 Ba4 22. Rhe1 Qa5 23. Qb2 Qc7 24. Qa3 b5 25. cxb5 c4 26. Qxa4 cxd3 27. Ne3 f4 28. Ng4 Qb6+ 29. Kf1 Rf5 30. Qa6 Qxa6 31. bxa6 Ra5 32. Rd2 Rxa6 33. Ne5 Ra3 34. Red1 Rd5 35. Nxd3 Rda5 36. Nxf4 Rxa2 37. Nxe6 Rxd2 38. Rxd2 Kf7 39. Nd8+ Kf6 40. Kf2 Ra1 41. Nc6 a5 42. Nd4 a4 43. Ne2 a3 44. h4 Ke5 45. g3 h6 46. h5 Kf6 47. Rd6+ Ke5 48. Rd2 Kf6 49. Ke3 Ke5 50. g4 Kf6 51. Kf4 Rb1 52. Rd6+ Kf7 53. Ra6 Rb4+ 54. Kf5 Rb5+ 55. Ke4 Rb2 56. Nd4 a2 57. Ke5 Rd2 58. Ra7+ Kg8 59. Ne6 Rf2 60. f4 Rg2 61. Kf5 Re2 62. Rxg7+ Kh8 63. Ra7 Kg8 64. g5 hxg5 65. fxg5 Kh8 66. Ra8+ Kh7 67. g6+ 1-0

[Event "45th FIDE Olympiad 2024"]
[Site "Budapest"]
[Date "2024.09.15"]
[Round "5.225"]
[White "Santos Flores, Alberto"]
[Black "Van Bemmelen, Ursus"]
[Result "1/2-1/2"]
[ECO "A05"]
[WhiteElo "2168"]
[BlackElo "2146"]
[PlyCount "107"]
[EventDate "2024.09.05"]
[EventType "team-tourn"]
[EventCountry "HUN"]
[WhiteTeam "Ecuador"]
[BlackTeam "Netherlands Antilles"]
[WhiteTeamCountry "ECU"]
[BlackTeamCountry "AHO"]
[TimeControl "40/5400+30:1800+30"]

1. e4 c5 2. Nf3 e6 3. g3 b6 4. Bg2 Bb7 5. d3 d6 6. O-O Nf6 7. c3 Be7 8. Nbd2 O-O 9. a3 Qc7 10. Rb1 Nbd7 11. Re1 Rac8 12. Qe2 Ba6 13. b3 Ng4 14. c4 Bf6 15. b4 cxb4 16. Rxb4 Nge5 17. Nxe5 dxe5 18. Rb1 Rfd8 19. Nb3 b5 20. cxb5 Bxb5 21. Be3 Qc6 22. Bf1 Qa6 23. Qb2 Bxd3 24. Bxd3 Qxd3 25. Bxa7 Rc2 26. Nc1 Qd2 27. Qb4 Be7 28. Qxd2 Rxd2 29. Be3 Rc2 30. Rb7 Bc5 31. Rc7 Rc3 32. Rd1 Rxe3 33. Rxc5 Re1+ 34. Rxe1 Nxc5 35. Na2 Ra8 36. Re3 g5 37. g4 Kg7 38. Kg2 Kg6 39. Nb4 h5 40. h3 h4 41. Kf3 f5 42. exf5+ exf5 43. Rxe5 Rxa3+ 44. Kg2 fxg4 45. Rxc5 gxh3+ 46. Kh2 g4 47. Rc2 Rf3 48. Nc6 Rxf2+ 49. Rxf2 g3+ 50. Kxh3 gxf2 51. Kg2 h3+ 52. Kxf2 h2 53. Kg2 h1=B+ 54. Kxh1 1/2-1/2

[Event "45th FIDE Olympiad 2024"]
[Site "Budapest"]
[Date "2024.09.15"]
[Round "5.226"]
[White "Capella, Rurik"]
[Black "Garzon Zapatanga, Christopher Leonel"]
[Result "0-1"]
[ECO "B50"]
[WhiteElo "1971"]
[BlackElo "2216"]
[PlyCount "53"]
[EventDate "2024.09.05"]
[EventType "team-tourn"]
[EventCountry "HUN"]
[WhiteTeam "Netherlands Antilles"]
[BlackTeam "Ecuador"]
[WhiteTeamCountry "AHO"]
[BlackTeamCountry "ECU"]
[TimeControl "40/5400+30:1800+30"]

1. e4 c5 2. Nf3 d6 3. Nc3 Nf6 4. e5 dxe5 5. Nxe5 e6 6. Bb5+ Nbd7 7. d4 cxd4 8. Qxd4 a6 9. Bxd7+ Nxd7 10. Bf4 Bc5 11. Qc4 Qc7 12. Qe4 Bd6 13. Nxf7 Kxf7 14. Bxd6 Qxd6 15. Rd1 Qc6 16. Qf4+ Nf6 17. O-O Re8 18. Qe5 Kg8 19. Rd6 Qc7 20. Rfd1 b5 21. g4 Bb7 22. g5 Nd5 23. Ne4 Rad8 24. g6 hxg6 25. c4 bxc4 26. Rd4 Qf7 27. Ng5 {0-} 0-1

[Event "45th FIDE Olympiad 2024"]
[Site "Budapest"]
[Date "2024.09.15"]
[Round "5.227"]
[White "Mieles Palau, Daniel"]
[Black "Van Opstal, Rurik"]
[Result "1-0"]
[ECO "A29"]
[WhiteElo "2321"]
[BlackElo "2006"]
[PlyCount "65"]
[EventDate "2024.09.05"]
[EventType "team-tourn"]
[EventCountry "HUN"]
[WhiteTeam "Ecuador"]
[BlackTeam "Netherlands Antilles"]
[WhiteTeamCountry "ECU"]
[BlackTeamCountry "AHO"]
[TimeControl "40/5400+30:1800+30"]

1. c4 e5 2. g3 Nf6 3. Nc3 d5 4. cxd5 Nxd5 5. Bg2 Nf6 6. Nf3 Nc6 7. O-O h6 8. d3 Bd6 9. b3 O-O 10. Bb2 Re8 11. Nd2 Bf5 12. Bxc6 bxc6 13. Rc1 Bb4 14. Na4 Bh3 15. Re1 Qd5 16. f3 Ng4 17. Nc4 Bxe1 18. Qxe1 Nf6 19. Ne3 Qd7 20. Nc5 Qc8 21. g4 h5 22. Qg3 hxg4 23. fxg4 Bxg4 24. Rf1 Kh7 25. Rxf6 gxf6 26. Qh4+ Kg6 27. Nxg4 Rh8 28. Qxf6+ Kh5 29. h3 Qd8 30. Qxf7+ Kh4 31. Bxe5 Rh6 32. Ne4 Qg8 33. Bg3+ 1-0

[Event "45th FIDE Olympiad 2024"]
[Site "Budapest"]
[Date "2024.09.15"]
[Round "5.228"]
[White "Van Delden, Johan"]
[Black "Munoz Sanchez, Miguel"]
[Result "0-1"]
[ECO "B28"]
[WhiteElo "1909"]
[BlackElo "2181"]
[PlyCount "70"]
[EventDate "2024.09.05"]
[EventType "team-tourn"]
[EventCountry "HUN"]
[WhiteTeam "Netherlands Antilles"]
[BlackTeam "Ecuador"]
[WhiteTeamCountry "AHO"]
[BlackTeamCountry "ECU"]
[TimeControl "40/5400+30:1800+30"]

1. e4 c5 2. Nf3 a6 3. d4 cxd4 4. Nxd4 Nf6 5. Bd3 e5 6. Nb3 d5 7. exd5 Nxd5 8. a3 Nc6 9. O-O Be6 10. Re1 Be7 11. N1d2 O-O 12. Nf3 Qc7 13. Ng5 Bxg5 14. Bxg5 f6 15. Bd2 Rad8 16. Qf3 Nde7 17. Rad1 Nd4 18. Nxd4 Rxd4 19. h3 Rfd8 20. Be3 R4d7 21. Qh5 g6 22. Qh4 Nd5 23. Bc1 Bf7 24. Qg4 Ne7 25. Qh4 Qc6 26. Bd2 Rd4 27. Re4 Nf5 28. Qg4 h5 29. Qe2 Bd5 30. Rxd4 Nxd4 31. Qf1 e4 32. Be2 Qxc2 33. b4 Bb3 34. Rc1 Nxe2+ 35. Qxe2 Qxd2 {0-} 0-1

[Event "45th FIDE Olympiad 2024"]
[Site "Budapest"]
[Date "2024.09.15"]
[Round "5.229"]
[White "Bagheri, Amir"]
[Black "Mehrad, Ahmad Tamim"]
[Result "1-0"]
[ECO "D34"]
[WhiteElo "2372"]
[BlackElo "2015"]
[PlyCount "57"]
[EventDate "2024.09.05"]
[EventType "team-tourn"]
[EventCountry "HUN"]
[WhiteTeam "Monaco"]
[BlackTeam "Afghanistan"]
[WhiteTeamCountry "MNC"]
[BlackTeamCountry "AFG"]
[TimeControl "40/5400+30:1800+30"]

1. Nf3 d5 2. c4 e6 3. g3 c5 4. cxd5 exd5 5. d4 Nf6 6. Bg2 Nc6 7. Nc3 c4 8. O-O Bb4 9. Bg5 Bxc3 10. bxc3 h6 11. Bxf6 Qxf6 12. Nd2 Be6 13. e4 O-O-O 14. Rb1 Qe7 15. Qa4 f5 16. exd5 Bxd5 17. Rfe1 Qf7 18. Bxd5 Qxd5 19. Rb5 Qf7 20. Reb1 b6 21. Nxc4 Qc7 22. Rxb6 axb6 23. Nxb6+ Kb7 24. Nd5+ Kc8 25. Qa6+ Kd7 26. Nxc7 Kxc7 27. Rb7+ Kd6 28. Rxg7 Rhg8 29. Qa3+ 1-0

[Event "45th FIDE Olympiad 2024"]
[Site "Budapest"]
[Date "2024.09.15"]
[Round "5.230"]
[White "Haidary, Hameedullah"]
[Black "Efimov, Igor"]
[Result "0-1"]
[ECO "C01"]
[WhiteElo "2192"]
[BlackElo "2338"]
[PlyCount "126"]
[EventDate "2024.09.05"]
[EventType "team-tourn"]
[EventCountry "HUN"]
[WhiteTeam "Afghanistan"]
[BlackTeam "Monaco"]
[WhiteTeamCountry "AFG"]
[BlackTeamCountry "MNC"]
[TimeControl "40/5400+30:1800+30"]

1. e4 e6 2. d4 d5 3. exd5 exd5 4. Nf3 Bd6 5. Bd3 Ne7 6. O-O Nbc6 7. c3 Bg4 8. Re1 Qd7 9. Nbd2 O-O 10. Qc2 Bf5 11. Bxf5 Nxf5 12. Nf1 Rae8 13. Ne3 Nce7 14. Bd2 c6 15. h3 f6 16. Re2 Nxe3 17. Bxe3 Nf5 18. Rae1 Bc7 19. Bc1 g6 20. Qd3 b5 21. b3 Kf7 22. Ba3 Rxe2 23. Qxe2 Re8 24. Qxe8+ Qxe8 25. Rxe8 Kxe8 26. g4 Ng7 27. Ne1 Ne6 28. Nd3 Ng5 29. Kg2 Ne4 30. Bb2 Ba5 31. f3 Ng5 32. Kg3 Bc7+ 33. Kg2 Ne6 34. Bc1 Bd6 35. Kf2 g5 36. b4 Kf7 37. Be3 Kg6 38. Ke2 h5 39. Kf2 a6 40. Bd2 Bc7 41. Ke2 a5 42. a3 a4 43. Be3 Bd6 44. Bd2 f5 45. Kf2 Nf8 46. Kg2 Nd7 47. Kf2 Nf6 48. Ne5+ Bxe5 49. dxe5 Ne8 50. gxh5+ Kxh5 51. e6 f4 52. e7 Kg6 53. h4 gxh4 54. Bxf4 Kf6 55. Be3 Nd6 56. Bc5 Kxe7 57. Kg2 Ke6 58. Bxd6 Kxd6 59. Kh3 c5 60. bxc5+ Kxc5 61. f4 d4 62. f5 dxc3 63. f6 Kd6 {0-} 0-1

[Event "45th FIDE Olympiad 2024"]
[Site "Budapest"]
[Date "2024.09.15"]
[Round "5.231"]
[White "Meylan, Andre"]
[Black "Kanz, Ahmad Safy"]
[Result "1/2-1/2"]
[ECO "B90"]
[WhiteElo "2165"]
[BlackElo "1977"]
[PlyCount "166"]
[EventDate "2024.09.05"]
[EventType "team-tourn"]
[EventCountry "HUN"]
[WhiteTeam "Monaco"]
[BlackTeam "Afghanistan"]
[WhiteTeamCountry "MNC"]
[BlackTeamCountry "AFG"]
[TimeControl "40/5400+30:1800+30"]

1. e4 c5 2. Nf3 d6 3. d4 cxd4 4. Nxd4 Nf6 5. Nc3 a6 6. a4 e5 7. Nf3 h6 8. Bc4 Be7 9. O-O O-O 10. Qe2 Be6 11. Rd1 Qc7 12. Nd5 Bxd5 13. Bxd5 Nxd5 14. Rxd5 Nd7 15. Rd3 b5 16. axb5 axb5 17. Rda3 Rxa3 18. Rxa3 b4 19. Ra1 Qc6 20. Ne1 Nc5 21. f3 d5 22. exd5 Qxd5 23. Be3 Ne6 24. Qd3 Qc6 25. Ra6 Qc8 26. Ra5 Rd8 27. Rd5 Rxd5 28. Qxd5 Qa6 29. Kf2 Bf6 30. Nd3 Qa1 31. b3 Qh1 32. Qa8+ Kh7 33. Qe4+ Kg8 34. h3 Be7 35. Nxe5 Qd1 36. Qd3 Qh1 37. Qe4 Qd1 38. Nc6 Bf8 39. Qd3 Qa1 40. Nd4 Nxd4 41. Bxd4 Qb1 42. Qe2 Bd6 43. Qe8+ Kh7 44. Qc6 Bh2 45. Qe4+ Kg8 46. Ke2 Bd6 47. Qe8+ Kh7 48. Qe4+ Kg8 49. Kd2 Qf1 50. Qe2 Qh1 51. Qe8+ Bf8 52. Qe2 Qh2 53. Kc1 Qf4+ 54. Qe3 Qg3 55. Qf2 Qg5+ 56. Kb1 Bd6 57. Qe2 Qd5 58. Qe8+ Bf8 59. Qe4 Qb5 60. Kb2 Bd6 61. Qg4 Bf8 62. f4 Qd5 63. f5 h5 64. Qh4 Qxf5 65. Qd8 Qf4 66. Kb1 Qd2 67. Bb6 Qxg2 68. Bc5 Qf1+ 69. Kb2 Qf6+ 70. Qxf6 gxf6 71. Bxf8 Kxf8 72. c4 Ke7 73. Kc2 Kd6 74. Kd3 Ke5 75. h4 f5 76. Ke3 f4+ 77. Kf3 f6 78. Kf2 Kd4 79. Kf3 Ke5 80. Ke2 Ke4 81. Kf2 Kd4 82. Ke2 Ke4 83. Kf2 Kd4 1/2-1/2

[Event "45th FIDE Olympiad 2024"]
[Site "Budapest"]
[Date "2024.09.15"]
[Round "5.232"]
[White "Abdul Khaliq, Wais"]
[Black "Van Hoolandt, Patrick"]
[Result "1-0"]
[ECO "E32"]
[WhiteElo "1968"]
[BlackElo "2036"]
[PlyCount "69"]
[EventDate "2024.09.05"]
[EventType "team-tourn"]
[EventCountry "HUN"]
[TimeControl "40/5400+30:1800+30"]

1. d4 Nf6 2. c4 e6 3. Nc3 Bb4 4. Qc2 O-O 5. Bg5 h6 6. Bh4 d6 7. a3 Bxc3+ 8. Qxc3 Nbd7 9. Nf3 b6 10. e3 Bb7 11. Be2 Qe8 12. h3 Ne4 13. Qc2 f5 14. O-O-O g5 15. Bg3 Ndf6 16. Bd3 Nxg3 17. fxg3 Kg7 18. g4 fxg4 19. hxg4 Rh8 20. Nh2 Qc6 21. Rhf1 Raf8 22. Rd2 Ne4 23. d5 Rxf1+ 24. Nxf1 exd5 25. Bxe4 dxe4 26. Qc3+ Kg8 27. Rf2 Rh7 28. Qf6 Qxc4+ 29. Kd1 Qa4+ 30. Ke1 Qe8 31. Ng3 Bc6 32. Nf5 Qf8 33. Nxh6+ Qxh6 34. Qd8+ Kg7 35. Qf8+ 1-0

[Event "45th FIDE Olympiad 2024"]
[Site "Budapest"]
[Date "2024.09.15"]
[Round "5.233"]
[White "Paiva, Donaldo"]
[Black "Ssegwanyi, Arthur"]
[Result "1-0"]
[ECO "B13"]
[WhiteElo "2139"]
[BlackElo "2365"]
[PlyCount "55"]
[EventDate "2024.09.05"]
[EventType "team-tourn"]
[EventCountry "HUN"]
[WhiteTeam "Mozambique"]
[BlackTeam "Uganda"]
[WhiteTeamCountry "MOZ"]
[BlackTeamCountry "UGA"]
[TimeControl "40/5400+30:1800+30"]

1. d4 d5 2. Nc3 Nf6 3. Bf4 c5 4. e3 cxd4 5. exd4 a6 6. Nf3 Nc6 7. Ne5 e6 8. Nxc6 bxc6 9. Na4 Bd6 10. Bxd6 Qxd6 11. Bd3 O-O 12. O-O Rb8 13. Re1 a5 14. a3 h6 15. Qd2 Ng4 16. f4 Bd7 17. b3 Bc8 18. Rf1 Qc7 19. Rae1 Nf6 20. Re3 Ra8 21. Nc5 Ra7 22. Qe2 Qd6 23. g4 Nd7 24. b4 axb4 25. axb4 Nxc5 26. bxc5 Qd8 27. g5 hxg5 28. Bh7+ 1-0

[Event "45th FIDE Olympiad 2024"]
[Site "Budapest"]
[Date "2024.09.15"]
[Round "5.234"]
[White "Kawuma, Patrick"]
[Black "Andrade, Ivan"]
[Result "1-0"]
[ECO "E60"]
[WhiteElo "2207"]
[BlackElo "2132"]
[PlyCount "105"]
[EventDate "2024.09.05"]
[EventType "team-tourn"]
[EventCountry "HUN"]
[WhiteTeam "Uganda"]
[BlackTeam "Mozambique"]
[WhiteTeamCountry "UGA"]
[BlackTeamCountry "MOZ"]
[TimeControl "40/5400+30:1800+30"]

1. c4 Nf6 2. g3 g6 3. d4 Bg7 4. Bg2 c5 5. dxc5 Qa5+ 6. Nc3 Qxc5 7. Bd2 O-O 8. Rc1 d6 9. b4 Qb6 10. Nf3 Nc6 11. a3 e5 12. O-O Be6 13. c5 Qd8 14. Na4 e4 15. Ng5 d5 16. Nxe6 fxe6 17. Bh3 Qe8 18. Nc3 Ne5 19. Bg5 Nfg4 20. f3 h6 21. Bf4 Rxf4 22. gxf4 Ne3 23. Qe1 Nxf1 24. Qxf1 Nc4 25. fxe4 Bxc3 26. Rxc3 Nd2 27. Qe1 Nxe4 28. Re3 Qf7 29. Qh4 Kg7 30. Bg2 g5 31. fxg5 hxg5 32. Qe1 Qf4 33. Qa1+ Kg8 34. Rf3 Qc7 35. Rh3 Qg7 36. Qxg7+ Kxg7 37. Bxe4 dxe4 38. Kf2 Kf6 39. Rh7 Rb8 40. Ke3 Kf5 41. Rf7+ Ke5 42. Rc7 a5 43. Rg7 axb4 44. axb4 Kf6 45. Rh7 Ke5 46. Rh5 Kd5 47. h4 Ra8 48. hxg5 e5 49. g6 Ra3+ 50. Kf2 Ra6 51. Rg5 Ra8 52. g7 Rg8 53. Ke3 1-0

[Event "45th FIDE Olympiad 2024"]
[Site "Budapest"]
[Date "2024.09.15"]
[Round "5.235"]
[White "Jamal, Hamid Harmon Gulamo"]
[Black "Egesa, Emmanuel"]
[Result "1-0"]
[ECO "B11"]
[WhiteElo "1960"]
[BlackElo "2128"]
[PlyCount "123"]
[EventDate "2024.09.05"]
[EventType "team-tourn"]
[EventCountry "HUN"]
[WhiteTeam "Mozambique"]
[BlackTeam "Uganda"]
[WhiteTeamCountry "MOZ"]
[BlackTeamCountry "UGA"]
[TimeControl "40/5400+30:1800+30"]

1. e4 c6 2. Nc3 d5 3. Nf3 Bg4 4. h3 Bxf3 5. Qxf3 e6 6. d3 Nd7 7. Bd2 Bc5 8. Qg3 Bd4 9. O-O-O a6 10. Ne2 Bf6 11. f4 g6 12. Bc3 Qb6 13. Bxf6 Ngxf6 14. e5 Ng8 15. d4 c5 16. Qf3 Ne7 17. g4 O-O-O 18. dxc5 Nxc5 19. Nd4 Nc6 20. Nxc6 Qxc6 21. Kb1 Kb8 22. Be2 Qa4 23. Qe3 d4 24. Qf2 Qb4 25. a3 Qb6 26. Rxd4 Rxd4 27. Qxd4 Rd8 28. Qe3 Na4 29. Qxb6 Nxb6 30. Bd3 Rd4 31. Rf1 Nd5 32. f5 Nf4 33. fxe6 fxe6 34. Rf3 h6 35. Kc1 g5 36. b3 Kc7 37. a4 Rd5 38. Re3 Ng2 39. Re4 Nf4 40. Bc4 Rc5 41. b4 Rc6 42. h4 Ng6 43. hxg5 hxg5 44. Kb2 Kd8 45. Bd3 Nf4 46. Rd4+ Ke7 47. Be4 Rc7 48. c3 Ne2 49. Rd3 b5 50. a5 Nf4 51. Rd6 Ne2 52. Rxa6 Nxc3 53. Rc6 Na4+ 54. Kb3 Rd7 55. Rd6 Rxd6 56. exd6+ Kxd6 57. Bd3 Kc6 58. Bf1 e5 59. Bd3 Nc5+ 60. bxc5 Kxc5 61. a6 Kb6 62. Bxb5 1-0

[Event "45th FIDE Olympiad 2024"]
[Site "Budapest"]
[Date "2024.09.15"]
[Round "5.236"]
[White "Nsubuga, Haruna"]
[Black "Napoleao, Lourenco"]
[Result "1-0"]
[ECO "D12"]
[WhiteElo "2243"]
[BlackElo "1913"]
[PlyCount "95"]
[EventDate "2024.09.05"]
[EventType "team-tourn"]
[EventCountry "HUN"]
[WhiteTeam "Uganda"]
[BlackTeam "Mozambique"]
[WhiteTeamCountry "UGA"]
[BlackTeamCountry "MOZ"]
[TimeControl "40/5400+30:1800+30"]

1. Nf3 d5 2. c4 c6 3. b3 Nf6 4. Bb2 Bf5 5. e3 e6 6. Nc3 Nbd7 7. Be2 h6 8. O-O Bd6 9. d4 O-O 10. Bd3 Bxd3 11. Qxd3 e5 12. cxd5 cxd5 13. dxe5 Nxe5 14. Nxe5 Bxe5 15. Na4 Bxb2 16. Nxb2 Qa5 17. a3 Rac8 18. b4 Qc7 19. Qd4 Qc2 20. h3 Rfe8 21. Rfc1 Qxc1+ 22. Rxc1 Rxc1+ 23. Kh2 Rc2 24. f3 Re2 25. Nd1 b6 26. a4 Rc8 27. Nc3 Re1 28. Qd2 Ra1 29. Nxd5 Nxd5 30. Qxd5 Rac1 31. e4 R1c6 32. f4 R6c7 33. f5 Re8 34. Kg3 Kh7 35. e5 Rce7 36. Kf4 Kh8 37. Qd6 Kh7 38. g4 Kg8 39. h4 f6 40. e6 Rb7 41. Qc6 Rbe7 42. g5 fxg5+ 43. hxg5 hxg5+ 44. Kxg5 Rf8 45. Qd6 Rfe8 46. Kg6 Rb7 47. Qh2 Reb8 48. e7 1-0

[Event "45th FIDE Olympiad 2024"]
[Site "Budapest"]
[Date "2024.09.15"]
[Round "5.237"]
[White "Laohawirapap, Prin"]
[Black "Cogan, Nicolas"]
[Result "1-0"]
[ECO "B39"]
[WhiteElo "2380"]
[BlackElo "2112"]
[PlyCount "107"]
[EventDate "2024.09.05"]
[EventType "team-tourn"]
[EventCountry "HUN"]
[WhiteTeam "Thailand"]
[BlackTeam "Cote d/^Ivoire"]
[WhiteTeamCountry "THA"]
[TimeControl "40/5400+30:1800+30"]

1. e4 c5 2. Nf3 Nc6 3. d4 cxd4 4. Nxd4 g6 5. c4 Bg7 6. Be3 Nf6 7. Nc3 Ng4 8. Qxg4 Nxd4 9. Qd1 Ne6 10. Rc1 Qa5 11. Qd2 d6 12. Be2 Bd7 13. O-O Nc5 14. Bf3 Bc6 15. Bd4 Bxd4 16. Qxd4 O-O 17. Qe3 Nd7 18. Be2 Qb6 19. Qxb6 Nxb6 20. f4 Na4 21. Nxa4 Bxa4 22. Kf2 Rac8 23. Ke3 Rc7 24. g4 Rfc8 25. h4 Bd7 26. Rcd1 a6 27. h5 Kg7 28. Rh1 f6 29. Rh2 g5 30. fxg5 fxg5 31. h6+ Kf6 32. Rf2+ Ke6 33. Rf5 Rg8 34. Rdd5 Rg6 35. Rxg5 Rxh6 36. Rh5 Rxh5 37. Rxh5 Be8 38. Rxh7 Bg6 39. Rh8 Ke5 40. Bd3 Bf7 41. b3 e6 42. Rh7 Rd7 43. g5 Be8 44. g6 Kf6 45. e5+ dxe5 46. Rxd7 Bxd7 47. Be4 Bc6 48. Bxc6 bxc6 49. Ke4 Kxg6 50. Kxe5 Kf7 51. Kd6 Kf6 52. Kxc6 e5 53. Kd5 Kf5 54. c5 1-0

[Event "45th FIDE Olympiad 2024"]
[Site "Budapest"]
[Date "2024.09.15"]
[Round "5.238"]
[White "De Gondo, Simplice Armel"]
[Black "Kulpruethanon, Thanadon"]
[Result "1/2-1/2"]
[ECO "E06"]
[WhiteElo "2045"]
[BlackElo "2286"]
[PlyCount "84"]
[EventDate "2024.09.05"]
[EventType "team-tourn"]
[EventCountry "HUN"]
[WhiteTeam "Cote d/^Ivoire"]
[BlackTeam "Thailand"]
[BlackTeamCountry "THA"]
[TimeControl "40/5400+30:1800+30"]

1. d4 Nf6 2. Nf3 d5 3. c4 e6 4. g3 Be7 5. Bg2 O-O 6. O-O c6 7. Ne5 Nbd7 8. f4 dxc4 9. Nxc4 c5 10. e3 Nb6 11. Ne5 cxd4 12. exd4 Nbd5 13. Nc3 Qb6 14. Na4 Qb5 15. Nc3 Qb4 16. Nxd5 exd5 17. f5 Bd8 18. Qd3 Bb6 19. Be3 Rd8 20. a3 Qd6 21. Rae1 Bd7 22. Bf4 Nh5 23. Bd2 Bb5 24. Qxb5 Bxd4+ 25. Kh1 Bxe5 26. Bb4 Nxg3+ 27. hxg3 Qh6+ 28. Kg1 Bxg3 29. Rf2 Qh2+ 30. Kf1 Bxf2 31. Kxf2 Rac8 32. Qd3 Rc4 33. Bd2 Qc7 34. Bg5 Rc2+ 35. Kf1 Rc8 36. Bxd5 h6 37. Be3 Qg3 38. Qe4 Qh3+ 39. Kg1 Qg3+ 40. Kf1 Qh3+ 41. Kg1 Qg3+ 42. Kf1 Qh3+ 1/2-1/2

[Event "45th FIDE Olympiad 2024"]
[Site "Budapest"]
[Date "2024.09.15"]
[Round "5.239"]
[White "Bodemar, Jonathan"]
[Black "Manan, Yoboue Hermann"]
[Result "1-0"]
[ECO "C54"]
[WhiteElo "2195"]
[BlackElo "2030"]
[PlyCount "67"]
[EventDate "2024.09.05"]
[EventType "team-tourn"]
[EventCountry "HUN"]
[WhiteTeam "Thailand"]
[BlackTeam "Cote d/^Ivoire"]
[WhiteTeamCountry "THA"]
[TimeControl "40/5400+30:1800+30"]

1. e4 e5 2. Nf3 Nc6 3. Bc4 Bc5 4. c3 Nf6 5. d4 exd4 6. e5 d5 7. Bb5 Ne4 8. cxd4 Bb6 9. Nc3 O-O 10. Be3 Bg4 11. h3 Be6 12. O-O h6 13. Rc1 Ne7 14. Bd3 Nxc3 15. bxc3 Nf5 16. Bf4 g5 17. Bd2 Kg7 18. Qc2 Qd7 19. Nh2 Nh4 20. f4 gxf4 21. Rxf4 Ng6 22. Rf6 Nxe5 23. Rcf1 Rh8 24. Kh1 Nxd3 25. Qxd3 Rag8 26. Qg3+ Kf8 27. Qe5 Ke8 28. Ng4 Qd6 29. Qh5 Kd8 30. Ne5 Rg7 31. Bxh6 Rgh7 32. Nxf7+ Rxf7 33. Rxf7 Re8 34. Rf8 1-0

[Event "45th FIDE Olympiad 2024"]
[Site "Budapest"]
[Date "2024.09.15"]
[Round "5.240"]
[White "Nean, Franck Anderson"]
[Black "Teerapabpaisit, Wisuwat"]
[Result "0-1"]
[ECO "E73"]
[WhiteElo "1917"]
[BlackElo "2070"]
[PlyCount "104"]
[EventDate "2024.09.05"]
[EventType "team-tourn"]
[EventCountry "HUN"]
[WhiteTeam "Cote d/^Ivoire"]
[BlackTeam "Thailand"]
[BlackTeamCountry "THA"]
[TimeControl "40/5400+30:1800+30"]

1. d4 Nf6 2. c4 g6 3. Nc3 Bg7 4. e4 d6 5. Be2 Nbd7 6. Be3 c5 7. d5 Qa5 8. Bd2 a6 9. g4 h6 10. h4 Ne5 11. f3 Rb8 12. a3 Qc7 13. Nh3 Bd7 14. a4 Bc8 15. Nf2 Ned7 16. f4 e6 17. Rc1 exd5 18. cxd5 c4 19. Bxc4 Qxc4 20. Nb5 axb5 21. Rxc4 bxc4 22. Bb4 Nc5 23. Bxc5 dxc5 24. e5 Nd7 25. Ne4 O-O 26. Nd6 Nxe5 27. fxe5 Bxe5 28. Nxc4 Bd4 29. Kd2 b5 30. axb5 Rxb5 31. b3 Rd8 32. d6 Be6 33. Qf3 Bxc4 34. bxc4 Rb2+ 35. Kc1 Rxd6 36. Rf1 Rd7 37. Rd1 Rdb7 38. Qe4 Bf6 39. Rd6 Bxh4 40. Rxg6+ Kf8 41. Qf5 Bf2 42. Qc8+ Ke7 43. Rc6 Be3+ 44. Kd1 Rd2+ 45. Kc1 Rd8+ 46. Kc2 Rxc8 47. Rxc8 Rd7 48. Kb3 Rd1 49. Ka4 Rb1 50. Rc7+ Ke8 51. Rc8+ Kd7 52. Rf8 Ke7 {0-} 0-1

[Event "45th FIDE Olympiad 2024"]
[Site "Budapest"]
[Date "2024.09.15"]
[Round "5.241"]
[White "Sanchez Alvarez, Roberto Carlos"]
[Black "Liyanage, Ranindu Dilshan"]
[Result "1-0"]
[ECO "D31"]
[WhiteElo "2376"]
[BlackElo "2366"]
[PlyCount "51"]
[EventDate "2024.09.05"]
[EventType "team-tourn"]
[EventCountry "HUN"]
[WhiteTeam "Panama"]
[BlackTeam "Sri Lanka"]
[WhiteTeamCountry "PAN"]
[BlackTeamCountry "SRI"]
[TimeControl "40/5400+30:1800+30"]

1. d4 d5 2. c4 e6 3. Nc3 a6 4. cxd5 exd5 5. Bf4 Nf6 6. e3 c5 7. Nge2 Nc6 8. g3 Bg4 9. Bg2 cxd4 10. exd4 Be7 11. O-O O-O 12. Re1 Qd7 13. Be5 Rad8 14. Qb3 Na5 15. Qc2 Bf5 16. Qc1 Ne4 17. Nf4 Bg5 18. Ncxd5 Nd6 19. h4 Bxf4 20. Qxf4 Nac4 21. Qg5 f6 22. Nxf6+ Rxf6 23. Bd5+ Re6 24. Bxd6 Kh8 25. Bxe6 Bxe6 26. Rxe6 1-0